fUST/lending_fUST_20250302
["ID","MTS","AMOUNT","RATE_DAILY","PERIOD"]
[355053325,1740882655586,-1422.78,0.00024931,2]
[355053326,1740882655596,-500.0,0.00024931,2]
[355053327,1740882655606,-19976.67,0.00024931,2]
[355053328,1740882655617,-698.15,0.00024931,2]
[355053329,1740882655626,-648.66,0.00024931,2]
[355053330,1740882655636,-500.0,0.00024931,2]
[355053331,1740882655645,-296.5625281,0.00024931,2]
[355053332,1740882655655,-1247.05,0.00024931,2]
[355053333,1740882655664,-500.0,0.00024931,2]
[355053334,1740882655673,-570.56240796,0.00024931,2]
[355053335,1740882655683,-500.0,0.00024931,2]
[355053336,1740882655692,-504.92664875,0.00024931,2]
[355053337,1740882655701,-417.40128733,0.00024931,2]
[355053338,1740882655711,-624.8,0.00024931,2]
[355053339,1740882655720,-500.0,0.00024931,2]
[355053340,1740882655729,-500.0,0.00024931,2]
[355053341,1740882655739,-500.0,0.00024931,2]
[355053342,1740882655748,-353.70885294,0.00024931,2]
[355053343,1740882655758,-1119.36,0.00024931,2]
[355053344,1740882655767,-3724.79,0.00024931,2]
[355053345,1740882655777,-500.0,0.00024931,2]
[355053346,1740882655786,-500.0,0.00024931,2]
[355053347,1740882655795,-500.0,0.00024931,2]
[355053348,1740882655805,-730.72,0.00024931,2]
[355053349,1740882655814,-500.0,0.00024931,2]
[355053350,1740882655824,-500.0,0.00024931,2]
[355053351,1740882655834,-500.0,0.00024931,2]
[355053352,1740882655843,-501.75348066,0.00024931,2]
[355053353,1740882655852,-500.0,0.00024931,2]
[355053354,1740882655861,-500.0,0.00024931,2]
[355053355,1740882655871,-500.0,0.00024931,2]
[355053356,1740882655879,-309.0,0.00024932,2]
[355053357,1740882655888,-151.68166078,0.0002495,2]
[355053358,1740882655898,-384.68552977,0.00024973,2]
[355053359,1740882655907,-492.53721017,0.00024973,2]
[355053360,1740882655917,-500.0,0.00024973,2]
[355053361,1740882655927,-501.23668107,0.00024973,2]
[355053362,1740882655936,-500.0,0.00024973,2]
[355053363,1740882655946,-500.0,0.00024973,2]
[355053364,1740882655955,-420.06959589,0.00024973,2]
[355053365,1740882655965,-160.03203288,0.00024973,2]
[355053366,1740882655975,-210.04930408,0.00024973,2]
[355053367,1740882655984,-505.21362727,0.00024973,2]
[355053368,1740882655994,-198.96375911,0.00024973,2]
[355053369,1740882656003,-500.0,0.00024973,2]
[355053370,1740882656013,-500.0,0.00024973,2]
[355053371,1740882656023,-500.0,0.00024973,2]
[355053372,1740882656032,-628.68351215,0.00024973,2]
[355053373,1740882656042,-500.0,0.00024973,2]
[355053374,1740882656051,-500.0,0.00024973,2]
[355053375,1740882656061,-500.0,0.00024973,2]
[355053376,1740882656071,-500.0,0.00024973,2]
[355053377,1740882656080,-500.0,0.00024973,2]
[355053378,1740882656090,-504.21014934,0.00024973,2]
[355053379,1740882656099,-503.53510008,0.00024973,2]
[355053380,1740882656109,-506.27657132,0.00024973,2]
[355053381,1740882656121,-500.0,0.00024973,2]
[355053382,1740882656132,-582.38731466,0.00024973,2]
[355053383,1740882656146,-500.0,0.00024973,2]
[355053384,1740882656166,-479.74694146,0.00024973,2]
[355053385,1740882656176,-500.0,0.00024973,2]
[355053386,1740882656185,-500.0,0.00024973,2]
[355053387,1740882656195,-500.14967682,0.00024973,2]
[355053388,1740882656205,-500.0,0.00024973,2]
[355053389,1740882656215,-262.31571404,0.00024973,2]
[355053390,1740882656225,-500.0,0.00024973,2]
[355053391,1740882656235,-504.4974225,0.00024973,2]
[355053392,1740882656245,-500.0,0.00024973,2]
[355053393,1740882656255,-500.0,0.00024973,2]
[355053394,1740882656265,-500.0,0.00024973,2]
[355053395,1740882656275,-500.0,0.00024973,2]
[355053396,1740882656285,-500.0,0.00024973,2]
[355053397,1740882656295,-166.53339194,0.00024973,2]
[355053398,1740882656304,-500.0,0.00024973,2]
[355053399,1740882656314,-198.73481955,0.00024973,2]
[355053400,1740882656323,-500.0,0.00024973,2]
[355053401,1740882656333,-163.80508101,0.00024973,2]
[355053402,1740882656343,-500.0,0.00024973,2]
[355053403,1740882656353,-500.0,0.00024973,2]
[355053404,1740882656362,-500.0,0.00024973,2]
[355053405,1740882656372,-500.0,0.00024973,2]
[355053406,1740882656382,-500.0,0.00024973,2]
[355053407,1740882656391,-504.50443401,0.00024973,2]
[355053408,1740882656401,-500.0,0.00024973,2]
[355053409,1740882656411,-501.73788208,0.00024973,2]
[355053410,1740882656421,-500.0,0.00024973,2]
[355053411,1740882656431,-500.0,0.00024973,2]
[355053412,1740882656440,-500.0,0.00024973,2]
[355053413,1740882656451,-300.29269768,0.00024973,2]
[355053414,1740882656461,-601.49243505,0.00024973,2]
[355053415,1740882656472,-500.0,0.00024973,2]
[355053416,1740882656482,-500.0,0.00024973,2]
[355053417,1740882656494,-503.51200878,0.00024973,2]
[355053418,1740882656504,-368.08595612,0.00024973,2]
[355053419,1740882656513,-268.7427686,0.00024989,2]
[355053420,1740882656523,-6666.66,0.00025,2]
[355053421,1740882656533,-5000.0,0.00025,2]
[355053422,1740882656543,-5000.0,0.00025,2]
[355053423,1740882656552,-309.0,0.00025,2]
[355053424,1740882656562,-500.0,0.00025,2]
[355053425,1740882656571,-5007.299,0.00025,2]
[355053426,1740882656581,-262.8776519,0.00025,7]
[355053427,1740882656591,-1048.44634496,0.00025,2]
[355053428,1740882656601,-2582.45912124,0.00025,2]
[355053429,1740882656610,-10364.0,0.00025,2]
[355053430,1740882656620,-167.471,0.00025,2]
[355053431,1740882656630,-500.0,0.000251,2]
[355053432,1740882656640,-150.0,0.00025119,7]
[355053433,1740882656650,-150.0,0.00025119,7]
[355053434,1740882656660,-500.0,0.000252,2]
[355053435,1740882656669,-500.0,0.00025205,2]
[355053436,1740882656679,-500.0,0.00025205,2]
[355053437,1740882656689,-500.0,0.00025205,2]
[355053438,1740882656699,-510.39187576,0.00025205,2]
[355053439,1740882656708,-500.0,0.00025205,2]
[355053440,1740882656718,-500.0,0.00025205,2]
[355053441,1740882656728,-500.0,0.00025205,2]
[355053442,1740882656738,-500.0,0.00025205,2]
[355053443,1740882656748,-500.0,0.00025205,2]
[355053444,1740882656758,-504.01785671,0.00025205,2]
[355053445,1740882656768,-500.0,0.00025205,2]
[355053446,1740882656778,-507.79677883,0.00025205,2]
[355053447,1740882656787,-500.0,0.00025205,2]
[355053448,1740882656797,-500.0,0.00025205,2]
[355053449,1740882656806,-500.0,0.00025205,2]
[355053450,1740882656816,-500.0,0.00025205,2]
[355053451,1740882656826,-500.0,0.00025205,2]
[355053452,1740882656836,-500.0,0.00025205,2]
[355053453,1740882656846,-500.0,0.00025205,2]
[355053454,1740882656855,-500.0,0.00025205,2]
[355053455,1740882656865,-500.0,0.00025205,2]
[355053456,1740882656874,-500.0,0.00025205,2]
[355053457,1740882656884,-233.82780707,0.00025205,2]
[355053458,1740882656894,-790.08,0.00025205,2]
[355053459,1740882656904,-500.0,0.00025205,2]
[355053460,1740882656913,-510.49552199,0.00025205,2]
[355053461,1740882656923,-425.28373558,0.00025205,2]
[355053462,1740882656934,-871.27,0.00025205,2]
[355053463,1740882656943,-500.0,0.00025205,2]
[355053464,1740882656953,-500.0,0.00025205,2]
[355053465,1740882656963,-666.14,0.00025205,2]
[355053466,1740882656973,-500.0,0.00025205,2]
[355053467,1740882656983,-500.0,0.00025205,2]
[355053468,1740882656993,-500.0,0.00025205,2]
[355053469,1740882657003,-500.0,0.00025205,2]
[355053470,1740882657013,-504.18159349,0.00025205,2]
[355053471,1740882657022,-500.0,0.00025205,2]
[355053472,1740882657032,-1062.6,0.00025205,2]
[355053473,1740882657042,-415.07990016,0.00025205,2]
[355053474,1740882657223,-500.0,0.00025205,2]
[355053475,1740882657252,-500.0,0.00025205,2]
[355053476,1740882657263,-500.0,0.00025205,2]
[355053477,1740882657273,-500.0,0.00025205,2]
[355053478,1740882657283,-643.95,0.00025205,2]
[355053479,1740882657293,-200.0,0.00025205,2]
[355053480,1740882657303,-500.0,0.00025205,2]
[355053481,1740882657313,-500.0,0.00025205,2]
[355053482,1740882657323,-500.0,0.00025205,2]
[355053483,1740882657333,-500.0,0.00025205,2]
[355053484,1740882657342,-500.0,0.00025205,2]
[355053485,1740882657352,-848.79,0.00025205,2]
[355053486,1740882657361,-500.0,0.00025205,2]
[355053487,1740882657371,-500.0,0.00025205,2]
[355053488,1740882657381,-500.0,0.00025205,2]
[355053489,1740882657391,-500.0,0.00025205,2]
[355053490,1740882657400,-500.0,0.00025205,2]
[355053491,1740882657410,-601.45,0.00025205,2]
[355053492,1740882657419,-500.0,0.00025205,2]
[355053493,1740882657429,-528.90177319,0.00025205,2]
[355053494,1740882657438,-507.61044548,0.00025205,2]
[355053495,1740882657448,-500.0,0.00025205,2]
[355053496,1740882657457,-500.0,0.00025205,2]
[355053497,1740882657467,-500.0,0.00025205,2]
[355053498,1740882657477,-946.7,0.00025205,2]
[355053499,1740882657486,-500.0,0.00025205,2]
[355053500,1740882657498,-500.0,0.00025205,2]
[355053501,1740882657508,-500.0,0.00025205,2]
[355053502,1740882657518,-500.0,0.00025205,2]
[355053503,1740882657527,-798.08,0.00025205,2]
[355053504,1740882657538,-500.0,0.00025205,2]
[355053505,1740882657548,-1191.66,0.00025205,2]
[355053506,1740882657558,-218.40590156,0.00025205,2]
[355053507,1740882657567,-500.0,0.00025205,2]
[355053508,1740882657577,-500.0,0.00025205,2]
[355053509,1740882657586,-500.0,0.00025205,2]
[355053510,1740882657595,-500.0,0.00025205,2]
[355053511,1740882657606,-500.0,0.00025205,2]
[355053512,1740882657615,-500.0,0.00025205,2]
[355053513,1740882657625,-500.0,0.00025205,2]
[355053514,1740882657635,-500.0,0.00025205,2]
[355053515,1740882657645,-510.56424638,0.00025205,2]
[355053516,1740882657655,-500.0,0.00025205,2]
[355053517,1740882657665,-500.0,0.00025205,2]
[355053518,1740882657675,-500.0,0.00025205,2]
[355053519,1740882657687,-500.0,0.00025205,2]
[355053520,1740882657696,-500.0,0.00025205,2]
[355053521,1740882657706,-500.0,0.00025205,2]
[355053522,1740882657715,-500.0,0.00025205,2]
[355053523,1740882657725,-500.0,0.00025205,2]
[355053524,1740882657734,-500.0,0.00025205,2]
[355053525,1740882657746,-500.0,0.00025205,2]
[355053526,1740882657756,-500.0,0.00025205,2]
[355053527,1740882657765,-500.0,0.00025205,2]
[355053528,1740882657775,-501.79189536,0.00025205,2]
[355053529,1740882657784,-500.0,0.00025205,2]
[355053530,1740882657794,-500.33,0.00025205,2]
[355053531,1740882657804,-500.0,0.00025205,2]
[355053532,1740882657814,-500.0,0.00025205,2]
[355053533,1740882657825,-500.0,0.00025205,2]
[355053534,1740882657835,-500.0,0.00025205,2]
[355053535,1740882657845,-500.0,0.00025205,2]
[355053536,1740882657854,-500.0,0.00025205,2]
[355053537,1740882657864,-500.0,0.00025205,2]
[355053538,1740882657873,-1144.38,0.00025205,2]
[355053539,1740882657883,-500.0,0.00025205,2]
[355053540,1740882657892,-500.0,0.00025205,2]
[355053541,1740882657902,-502.60513174,0.00025205,2]
[355053542,1740882657911,-955.47,0.00025205,2]
[355053543,1740882657920,-500.0,0.00025205,2]
[355053544,1740882657930,-500.0,0.00025205,2]
[355053545,1740882657939,-504.42032765,0.00025205,2]
[355053546,1740882657949,-544.07,0.00025205,2]
[355053547,1740882657958,-678.05,0.00025205,2]
[355053548,1740882657967,-507.16561785,0.00025205,2]
[355053549,1740882657978,-501.62,0.00025205,2]
[355053550,1740882657987,-500.0,0.00025205,2]
[355053551,1740882657998,-500.0,0.00025205,2]
[355053552,1740882658008,-500.0,0.00025205,2]
[355053553,1740882658018,-500.0,0.00025205,2]
[355053554,1740882658028,-173.62154156,0.00025205,2]
[355053555,1740882658038,-510.4950369,0.00025205,2]
[355053556,1740882658047,-500.0,0.00025205,2]
[355053557,1740882658057,-500.0,0.00025205,2]
[355053558,1740882658068,-500.0,0.00025205,2]
[355053559,1740882658078,-404.97555282,0.00025205,2]
[355053560,1740882658087,-513.79482939,0.00025205,2]
[355053561,1740882658097,-500.0,0.00025205,2]
[355053562,1740882658106,-500.0,0.00025205,2]
[355053563,1740882658116,-500.0,0.00025205,2]
[355053564,1740882658126,-504.22669279,0.00025205,2]
[355053565,1740882658137,-616.44,0.00025205,2]
[355053566,1740882658150,-500.0,0.00025205,2]
[355053567,1740882658160,-500.0,0.00025205,2]
[355053568,1740882658170,-500.0,0.00025205,2]
[355053569,1740882658179,-500.0,0.00025205,2]
[355053570,1740882658190,-500.0,0.00025205,2]
[355053571,1740882658200,-500.0,0.00025205,2]
[355053572,1740882658210,-500.0,0.00025205,2]
[355053573,1740882658222,-504.36474146,0.00025205,2]
[355053574,1740882658232,-500.0,0.00025205,2]
[355053575,1740882658244,-500.0,0.00025205,2]
[355053576,1740882658254,-500.0,0.00025205,2]
[355053577,1740882658263,-500.0,0.00025205,2]
[355053578,1740882658273,-500.0,0.00025205,2]
[355053579,1740882658283,-807.41,0.00025205,2]
[355053580,1740882658293,-500.0,0.00025205,2]
[355053581,1740882658303,-500.0,0.00025205,2]
[355053582,1740882658312,-500.0,0.00025205,2]
[355053583,1740882658323,-500.0,0.00025205,2]
[355053584,1740882658332,-500.0,0.00025205,2]
[355053585,1740882658342,-500.0,0.00025205,2]
[355053586,1740882658352,-504.78378022,0.00025205,2]
[355053587,1740882658362,-525.44,0.00025205,2]
[355053588,1740882658372,-681.9,0.00025205,2]
[355053589,1740882658381,-500.0,0.00025205,2]
[355053590,1740882658391,-500.0,0.00025205,2]
[355053591,1740882658401,-1466.47,0.00025205,2]
[355053592,1740882658411,-500.0,0.00025205,2]
[355053593,1740882658421,-500.0,0.00025205,2]
[355053594,1740882658431,-500.0,0.00025205,2]
[355053595,1740882658440,-508.0849061,0.00025205,2]
[355053596,1740882658450,-500.0,0.00025205,2]
[355053597,1740882658460,-533.75,0.00025205,2]
[355053598,1740882658469,-500.0,0.00025205,2]
[355053599,1740882658479,-509.31366825,0.00025205,2]
[355053600,1740882658490,-500.0,0.00025205,2]
[355053601,1740882658501,-663.86,0.00025205,2]
[355053602,1740882658511,-500.0,0.00025205,2]
[355053603,1740882658520,-504.88,0.00025205,2]
[355053604,1740882658530,-819.33,0.00025205,2]
[355053605,1740882658539,-651.68,0.00025205,2]
[355053606,1740882658549,-500.0,0.00025205,2]
[355053607,1740882658559,-1842.76,0.00025205,2]
[355053608,1740882658568,-500.0,0.00025205,2]
[355053609,1740882658578,-500.0,0.00025205,2]
[355053610,1740882658588,-1735.04,0.00025205,2]
[355053611,1740882658598,-507.13526973,0.00025205,2]
[355053612,1740882658607,-500.0,0.00025205,2]
[355053613,1740882658617,-500.0,0.00025205,2]
[355053614,1740882658627,-513.22129983,0.00025205,2]
[355053615,1740882658637,-1071.28,0.00025205,2]
[355053616,1740882658647,-500.0,0.00025205,2]
[355053617,1740882658656,-500.0,0.00025205,2]
[355053618,1740882658666,-500.0,0.00025205,2]
[355053619,1740882658675,-500.0,0.00025205,2]
[355053620,1740882658685,-1896.39,0.00025205,2]
[355053621,1740882658695,-500.0,0.00025205,2]
[355053622,1740882658705,-500.0,0.00025205,2]
[355053623,1740882658714,-546.66,0.00025205,2]
[355053624,1740882658723,-764.15,0.00025205,2]
[355053625,1740882658733,-500.0,0.00025205,2]
[355053626,1740882658745,-1761.57,0.00025205,2]
[355053627,1740882658755,-500.0,0.00025205,2]
[355053628,1740882658765,-500.0,0.00025205,2]
[355053629,1740882658774,-500.0,0.00025205,2]
[355053630,1740882658784,-500.0,0.00025205,2]
[355053631,1740882658793,-500.0,0.00025205,2]
[355053632,1740882658803,-500.0,0.00025205,2]
[355053633,1740882658812,-534.41,0.00025205,2]
[355053634,1740882658822,-500.0,0.00025205,2]
[355053635,1740882658832,-500.0,0.00025205,2]
[355053636,1740882658842,-500.0,0.00025205,2]
[355053637,1740882658852,-500.0,0.00025205,2]
[355053638,1740882658861,-510.73710645,0.00025205,2]
[355053639,1740882658871,-500.0,0.00025205,2]
[355053640,1740882658880,-507.42046679,0.00025205,2]
[355053641,1740882658890,-500.0,0.00025205,2]
[355053642,1740882658900,-500.0,0.00025205,2]
[355053643,1740882658910,-500.0,0.00025205,2]
[355053644,1740882658920,-674.54,0.00025205,2]
[355053645,1740882658929,-737.33,0.00025205,2]
[355053646,1740882658939,-500.0,0.00025205,2]
[355053647,1740882658948,-1893.03,0.00025205,2]
[355053648,1740882658958,-1135.49,0.00025205,2]
[355053649,1740882658967,-500.0,0.00025205,2]
[355053650,1740882658976,-500.0,0.00025205,2]
[355053651,1740882658985,-500.0,0.00025205,2]
[355053652,1740882658997,-2396.76,0.00025205,2]
[355053653,1740882659007,-582.75594164,0.00025205,2]
[355053654,1740882659016,-500.0,0.00025205,2]
[355053655,1740882659026,-500.0,0.00025205,2]
[355053656,1740882659035,-1120.4,0.00025205,2]
[355053657,1740882659045,-1355.76,0.00025205,2]
[355053658,1740882659055,-500.0,0.00025205,2]
[355053659,1740882659064,-500.0,0.00025205,2]
[355053660,1740882659074,-500.0,0.00025205,2]
[355053661,1740882659084,-1263.97,0.00025205,2]
[355053662,1740882659093,-500.0,0.00025205,2]
[355053663,1740882659103,-500.0,0.00025205,2]
[355053664,1740882659113,-500.0,0.00025205,2]
[355053665,1740882659123,-2840.49,0.00025205,2]
[355053666,1740882659132,-500.0,0.00025205,2]
[355053667,1740882659143,-500.0,0.00025205,2]
[355053668,1740882659154,-500.0,0.00025205,2]
[355053669,1740882659164,-500.0,0.00025205,2]
[355053670,1740882659173,-500.0,0.00025205,2]
[355053671,1740882659187,-500.0,0.00025205,2]
[355053672,1740882659196,-500.0,0.00025205,2]
[355053673,1740882659206,-500.0,0.00025205,2]
[355053674,1740882659215,-500.0,0.00025205,2]
[355053675,1740882659227,-500.0,0.00025205,2]
[355053676,1740882659237,-500.0,0.00025205,2]
[355053677,1740882659248,-500.0,0.00025205,2]
[355053678,1740882659258,-1934.08,0.00025205,2]
[355053679,1740882659267,-500.0,0.00025205,2]
[355053680,1740882659277,-500.0,0.00025205,2]
[355053681,1740882659287,-500.0,0.00025205,2]
[355053682,1740882659296,-500.0,0.00025205,2]
[355053683,1740882659306,-2095.11,0.00025205,2]
[355053684,1740882659315,-504.35380533,0.00025205,2]
[355053685,1740882659325,-500.0,0.00025205,2]
[355053686,1740882659334,-500.0,0.00025205,2]
[355053687,1740882659344,-1279.69,0.00025205,2]
[355053688,1740882659353,-500.0,0.00025205,2]
[355053689,1740882659363,-667.54,0.00025205,2]
[355053690,1740882659372,-500.0,0.00025205,2]
[355053691,1740882659382,-500.0,0.00025205,2]
[355053692,1740882659391,-503.82753121,0.00025205,2]
[355053693,1740882659400,-500.0,0.00025205,2]
[355053694,1740882659410,-500.0,0.00025205,2]
[355053695,1740882659419,-500.0,0.00025205,2]
[355053696,1740882659429,-816.94,0.00025205,2]
[355053697,1740882659438,-1173.65,0.00025205,2]
[355053698,1740882659447,-1000.0,0.00025205,2]
[355053699,1740882659457,-500.0,0.00025205,2]
[355053700,1740882659466,-509.48677424,0.00025205,2]
[355053701,1740882659476,-500.0,0.00025205,2]
[355053702,1740882659486,-500.0,0.00025205,2]
[355053703,1740882659497,-503.25,0.00025205,2]
[355053704,1740882659507,-848.62,0.00025205,2]
[355053705,1740882659518,-500.0,0.00025205,2]
[355053706,1740882659527,-500.0,0.00025205,2]
[355053707,1740882659537,-500.0,0.00025205,2]
[355053708,1740882659547,-500.0,0.00025205,2]
[355053709,1740882659556,-1917.91,0.00025205,2]
[355053710,1740882659566,-500.0,0.00025205,2]
[355053711,1740882659576,-502.98710799,0.00025205,2]
[355053712,1740882659585,-1006.21,0.00025205,2]
[355053713,1740882659595,-500.0,0.00025205,2]
[355053714,1740882659604,-479.53747784,0.00025205,2]
[355053715,1740882659613,-1339.71,0.00025205,2]
[355053716,1740882659624,-666.47,0.00025205,2]
[355053717,1740882659635,-512.16923544,0.00025205,2]
[355053718,1740882659646,-167.01854588,0.00025205,2]
[355053719,1740882659656,-902.27,0.00025205,2]
[355053720,1740882659665,-597.01868028,0.00025205,2]
[355053721,1740882659675,-1131.52,0.00025205,2]
[355053722,1740882659685,-2811.74,0.00025205,2]
[355053723,1740882659763,-500.0,0.00025205,2]
[355053724,1740882659773,-500.0,0.00025205,2]
[355053725,1740882659782,-526.5663977,0.00025205,2]
[355053726,1740882659791,-507.80904507,0.00025205,2]
[355053727,1740882659801,-500.0,0.00025205,2]
[355053728,1740882659811,-500.0,0.00025205,2]
[355053729,1740882659824,-500.0,0.00025205,2]
[355053730,1740882659834,-500.95908563,0.00025205,2]
[355053731,1740882659844,-500.0,0.00025205,2]
[355053732,1740882659853,-151.0,0.00025205,7]
[355053733,1740882659863,-500.0,0.00025205,2]
[355053734,1740882659872,-500.0,0.00025205,2]
[355053735,1740882659881,-507.23834086,0.00025205,2]
[355053736,1740882659890,-500.0,0.00025205,2]
[355053737,1740882659899,-504.97,0.00025205,2]
[355053738,1740882659908,-500.0,0.00025205,2]
[355053739,1740882659918,-500.0,0.00025205,2]
[355053740,1740882659927,-500.0,0.00025205,2]
[355053741,1740882659936,-605.59,0.00025205,2]
[355053742,1740882659945,-500.0,0.00025205,2]
[355053743,1740882659955,-750.24,0.00025205,2]
[355053744,1740882659964,-809.06,0.00025205,2]
[355053745,1740882659974,-151.0,0.00025205,7]
[355053746,1740882659983,-151.0,0.00025205,7]
[355053747,1740882659992,-500.0,0.00025205,2]
[355053748,1740882660002,-952.75,0.00025205,2]
[355053749,1740882660011,-1031.85,0.00025205,2]
[355053750,1740882660021,-500.0,0.00025205,2]
[355053751,1740882660031,-500.0,0.00025205,2]
[355053752,1740882660040,-500.0,0.00025205,2]
[355053753,1740882660049,-500.0,0.00025205,2]
[355053754,1740882660059,-512.7470231,0.00025205,2]
[355053755,1740882660069,-985.02,0.00025205,2]
[355053756,1740882660078,-1161.12,0.00025205,2]
[355053757,1740882660087,-714.56,0.00025205,2]
[355053758,1740882660097,-500.0,0.00025205,2]
[355053759,1740882660106,-500.0,0.00025205,2]
[355053760,1740882660116,-500.0,0.00025205,2]
[355053761,1740882660125,-500.0,0.00025205,2]
[355053762,1740882660135,-500.0,0.00025205,2]
[355053763,1740882660147,-235.00427096,0.00025205,2]
[355053764,1740882660156,-377.923398,0.00025205,7]
[355053765,1740882660165,-200.13327288,0.00025205,2]
[355053766,1740882660174,-377.923398,0.00025205,7]
[355053767,1740882660185,-332.83938215,0.00025205,2]
[355053768,1740882660195,-500.0,0.00025205,2]
[355053769,1740882660205,-974.857858,0.00025205,7]
[355053770,1740882660216,-866.64,0.00025205,2]
[355053771,1740882660226,-500.0,0.00025205,2]
[355053772,1740882660235,-500.0,0.00025205,2]
[355053773,1740882660246,-974.857858,0.00025205,7]
[355053774,1740882660255,-500.0,0.00025205,2]
[355053775,1740882660265,-1204.91,0.00025205,2]
[355053776,1740882660274,-500.0,0.00025205,2]
[355053777,1740882660283,-549.09,0.00025205,2]
[355053778,1740882660293,-500.0,0.00025205,2]
[355053779,1740882660302,-1246.51,0.00025205,2]
[355053780,1740882660311,-500.0,0.00025205,2]
[355053781,1740882660320,-501.83087388,0.00025205,2]
[355053782,1740882660330,-500.0,0.00025205,2]
[355053783,1740882660340,-500.0,0.00025205,2]
[355053784,1740882660349,-667.29,0.00025205,2]
[355053785,1740882660358,-765.3,0.00025205,2]
[355053786,1740882660368,-1220.08,0.00025205,2]
[355053787,1740882660377,-500.0,0.00025205,2]
[355053788,1740882660390,-745.83,0.00025205,2]
[355053789,1740882660399,-500.0,0.00025205,2]
[355053790,1740882660409,-2458.12,0.00025205,2]
[355053791,1740882660418,-504.25085549,0.00025205,2]
[355053792,1740882660427,-1824.08,0.00025205,2]
[355053793,1740882660437,-500.0,0.00025205,2]
[355053794,1740882660447,-500.0,0.00025205,2]
[355053795,1740882660456,-1914.36,0.00025205,2]
[355053796,1740882660465,-2029.55,0.00025205,2]
[355053797,1740882660474,-500.0,0.00025205,2]
[355053798,1740882660484,-500.0,0.00025205,2]
[355053799,1740882660495,-500.0,0.00025205,2]
[355053800,1740882660504,-520.7039231,0.00025205,2]
[355053801,1740882660514,-505.65591996,0.00025205,2]
[355053802,1740882660523,-500.0,0.00025205,2]
[355053803,1740882660533,-1928.56,0.00025205,2]
[355053804,1740882660543,-517.3880842,0.00025205,2]
[355053805,1740882660552,-500.0,0.00025205,2]
[355053806,1740882660562,-500.0,0.00025205,2]
[355053807,1740882660571,-835.93,0.00025205,2]
[355053808,1740882660581,-500.0,0.00025205,2]
[355053809,1740882660590,-500.0,0.00025205,2]
[355053810,1740882660600,-2145.3,0.00025205,2]
[355053811,1740882660609,-928.0,0.00025205,2]
[355053812,1740882660619,-500.0,0.00025205,2]
[355053813,1740882660628,-12080.65,0.00025205,2]
[355053814,1740882660638,-229019.07,0.00025205,2]
[355053815,1740882660647,-1231.67,0.00025205,2]
[355053816,1740882660657,-500.0,0.00025205,2]
[355053817,1740882660666,-1705.79,0.00025205,2]
[355053818,1740882660675,-500.0,0.00025205,2]
[355053819,1740882660685,-500.0,0.00025205,2]
[355053820,1740882660694,-500.0,0.00025205,2]
[355053821,1740882660703,-551.12,0.00025205,2]
[355053822,1740882660713,-633.60688388,0.00025205,2]
[355053823,1740882660722,-412.26711205,0.00025205,2]
[355053824,1740882660732,-251.64752683,0.00025205,2]